[Event "NK ABC Kwalificatie 2"]
[Site "Zoetermeer, Netherlands"]
[Date "2025.01.04"]
[Round "2.2"]
[White "Van Arendonk, Polle"]
[Black "Kumar, Prajit Sai"]
[Result "0-1"]
[TimeControl "55+10"]
[WhiteFideId "8640720"]
[BlackFideId "8767979"]
[WhiteElo "1944"]
[BlackElo "2210"]

1. e4 {[%clk 00:55:17]} {[%emt 00:00:02]} c5 {[%clk 00:54:57]} {[%emt
00:00:23]} 2. Nf3 {[%clk 00:55:24]} {[%emt 00:00:04]} Nc6 {[%clk 00:55:03]}
{[%emt 00:00:04]} 3. d4 {[%clk 00:55:31]} {[%emt 00:00:03]} cxd4 {[%clk
00:55:19]} {[%emt 00:00:04]} 4. Nxd4 {[%clk 00:55:47]} {[%emt 00:00:03]} Nf6
{[%clk 00:55:24]} {[%emt 00:00:05]} 5. Nc3 {[%clk 00:55:54]} {[%emt 00:00:03]}
d6 {[%clk 00:55:29]} {[%emt 00:00:04]} 6. f3 {[%clk 00:56:01]} {[%emt
00:00:03]} e5 {[%clk 00:55:36]} {[%emt 00:00:04]} 7. Nb3 {[%clk 00:56:09]}
{[%emt 00:00:02]} Be6 {[%clk 00:55:40]} {[%emt 00:00:05]} 8. Be3 {[%clk
00:56:16]} {[%emt 00:00:03]} d5 {[%clk 00:55:46]} {[%emt 00:00:04]} 9. exd5
{[%clk 00:56:21]} {[%emt 00:00:05]} Nxd5 {[%clk 00:55:53]} {[%emt 00:00:04]} 10.
Nxd5 {[%clk 00:56:27]} {[%emt 00:00:05]} Qxd5 {[%clk 00:55:57]} {[%emt
00:00:04]} 11. Qxd5 {[%clk 00:56:33]} {[%emt 00:00:05]} Bxd5 {[%clk 00:55:58]}
{[%emt 00:00:08]} 12. O-O-O {[%clk 00:56:41]} {[%emt 00:00:03]} O-O-O {[%clk
00:56:02]} {[%emt 00:00:06]} 13. c3 {[%clk 00:52:09]} {[%emt 00:04:42]} Be7
{[%clk 00:54:55]} {[%emt 00:01:16]} 14. Bd3 {[%clk 00:44:58]} {[%emt 00:07:21]}
h6 {[%clk 00:47:07]} {[%emt 00:07:58]} 15. Be4 {[%clk 00:40:16]} {[%emt
00:04:52]} Bxe4 {[%clk 00:47:09]} {[%emt 00:00:09]} 16. fxe4 {[%clk 00:40:23]}
{[%emt 00:00:03]} Bg5 {[%clk 00:46:56]} {[%emt 00:00:23]} 17. Rxd8+ {[%clk
00:29:51]} {[%emt 00:10:42]} Nxd8 {[%clk 00:44:54]} {[%emt 00:02:12]} 18. Kd2
{[%clk 00:27:15]} {[%emt 00:02:47]} Ne6 {[%clk 00:44:41]} {[%emt 00:00:22]} 19.
g3 {[%clk 00:25:26]} {[%emt 00:01:59]} h5 {[%clk 00:35:07]} {[%emt 00:09:44]}
20. h4 {[%clk 00:24:07]} {[%emt 00:01:29]} Bxe3+ {[%clk 00:35:11]} {[%emt
00:00:06]} 21. Kxe3 {[%clk 00:24:13]} {[%emt 00:00:04]} Rh6 {[%clk 00:34:35]}
{[%emt 00:00:45]} 22. Nd2 {[%clk 00:18:22]} {[%emt 00:06:01]} Rg6 {[%clk
00:31:36]} {[%emt 00:03:10]} 23. Kf3 {[%clk 00:17:28]} {[%emt 00:01:05]} b5
{[%emt 00:04:25]} 24. Rd1 {[%clk 00:15:29]} Rf6+ {[%clk 00:22:31]} {[%emt
00:07:06]} 25. Ke3 {[%clk 00:14:59]} {[%emt 00:00:41]} Nc7 {[%clk 00:20:37]}
{[%emt 00:02:03]} 26. Nb3 {[%clk 00:09:20]} {[%emt 00:05:49]} Rg6 {[%clk
00:20:02]} {[%emt 00:00:45]} 27. Kf3 {[%clk 00:09:16]} {[%emt 00:00:15]} Ra6
{[%clk 00:19:58]} {[%emt 00:00:24]} 28. a3 {[%clk 00:08:31]} {[%emt 00:01:06]}
Rc6 {[%clk 00:18:55]} {[%emt 00:01:12]} 29. Na5 {[%clk 00:06:29]} {[%emt
00:02:13]} Re6 {[%clk 00:18:01]} {[%emt 00:01:04]} 30. Nb3 {[%clk 00:06:10]}
{[%emt 00:00:29]} a6 {[%clk 00:14:21]} {[%emt 00:03:49]} 31. Na1 {[%clk
00:04:29]} {[%emt 00:01:51]} a5 {[%clk 00:11:14]} {[%emt 00:03:17]} 32. Nc2
{[%clk 00:04:13]} {[%emt 00:00:26]} g6 {[%clk 00:10:41]} {[%emt 00:00:43]} 33.
Ne3 {[%clk 00:03:51]} {[%emt 00:00:32]} a4 {[%clk 00:10:09]} {[%emt 00:00:42]}
34. Rd2 {[%clk 00:01:47]} {[%emt 00:02:14]} Rf6+ {[%clk 00:08:33]} {[%emt
00:01:46]} 35. Ke2 {[%clk 00:01:50]} {[%emt 00:00:07]} Rc6 {[%clk 00:07:43]}
{[%emt 00:01:00]} 36. Kf3 {[%clk 00:01:38]} {[%emt 00:00:22]} Ne6 {[%clk
00:06:20]} {[%emt 00:01:33]} 37. Rd5 {[%clk 00:01:15]} {[%emt 00:00:33]} Rc5
{[%clk 00:06:26]} {[%emt 00:00:04]} 38. Rd2 {[%clk 00:00:39]} {[%emt 00:00:46]}
Rc6 {[%clk 00:04:39]} {[%emt 00:01:57]} 39. Rd5 {[%clk 00:00:40]} {[%emt
00:00:09]} Rc5 {[%clk 00:04:45]} {[%emt 00:00:03]} 40. Rd2 {[%clk 00:00:47]}
{[%emt 00:00:04]} Nc7 {[%clk 00:03:32]} {[%emt 00:01:23]} 41. Rd6 {[%clk
00:00:44]} {[%emt 00:00:13]} Ne8 {[%clk 00:03:37]} {[%emt 00:00:05]} 42. Rd2
{[%clk 00:00:28]} {[%emt 00:00:26]} Nc7 {[%clk 00:03:09]} {[%emt 00:00:38]} 43.
Rd6 {[%clk 00:00:34]} {[%emt 00:00:04]} Ne8 {[%clk 00:03:18]} 44. Rd2 {[%clk
00:00:43]} {[%emt 00:00:01]} Kc7 {[%clk 00:02:38]} {[%emt 00:00:50]} 45. Nd5+
{[%clk 00:00:52]} {[%emt 00:00:01]} Kd6 {[%clk 00:02:25]} {[%emt 00:00:23]} 46.
Ke3 {[%clk 00:00:28]} {[%emt 00:00:34]} Ke6 {[%clk 00:02:10]} {[%emt 00:00:25]}
47. Rf2 {[%clk 00:00:25]} {[%emt 00:00:13]} f5 {[%clk 00:02:09]} {[%emt
00:00:11]} 48. exf5+ {[%clk 00:00:13]} {[%emt 00:00:23]} gxf5 {[%clk 00:01:53]}
{[%emt 00:00:25]} 49. Nb4 {[%clk 00:00:15]} {[%emt 00:00:08]} Nd6 {[%clk
00:02:02]} {[%emt 00:00:01]} 50. Kd3 {[%clk 00:00:13]} {[%emt 00:00:12]} Rc4
{[%clk 00:01:59]} {[%emt 00:00:12]} 51. Re2 {[%clk 00:00:13]} {[%emt 00:00:11]}
Rg4 {[%clk 00:02:00]} {[%emt 00:00:08]} 52. Nc6 {[%clk 00:00:12]} {[%emt
00:00:12]} Ne4 {[%clk 00:01:33]} {[%emt 00:00:37]} 53. Na7 {[%clk 00:00:13]}
{[%emt 00:00:09]} Nxg3 {[%clk 00:01:31]} {[%emt 00:00:12]} 54. Rh2 {[%clk
00:00:13]} {[%emt 00:00:10]} e4+ {[%clk 00:01:20]} {[%emt 00:00:21]} 55. Kc2
{[%clk 00:00:16]} {[%emt 00:00:07]} f4 {[%clk 00:01:10]} {[%emt 00:00:20]} 56.
Nxb5 {[%clk 00:00:24]} {[%emt 00:00:02]} f3 {[%clk 00:01:08]} {[%emt 00:00:13]}
57. Nd4+ {[%clk 00:00:17]} {[%emt 00:00:16]} Kd5 {[%clk 00:01:16]} {[%emt
00:00:02]} 58. Kd1 {[%clk 00:00:13]} {[%emt 00:00:15]} Nf1 {[%clk 00:01:17]}
{[%emt 00:00:08]} 59. Rf2 {[%clk 00:00:16]} {[%emt 00:00:07]} Ne3+ {[%clk
00:01:20]} {[%emt 00:00:07]} 60. Kd2 {[%clk 00:00:16]} {[%emt 00:00:11]} Nc4+
{[%clk 00:01:28]} 61. Kd1 {[%clk 00:00:12]} {[%emt 00:00:14]} Rxh4 {[%clk
00:01:02]} {[%emt 00:00:36]} 62. Nf5 {[%clk 00:00:15]} {[%emt 00:00:07]} Rh3
{[%clk 00:01:01]} {[%emt 00:00:12]} 63. Ke1 {[%clk 00:00:18]} {[%emt 00:01:47]}
e3 {[%clk 00:02:59]} {[%emt 00:00:04]} 64. Rf1 {[%clk 00:00:18]} {[%emt
00:00:10]} Ke4 {[%clk 00:02:47]} {[%emt 00:00:22]} 65. Ne7 {[%clk 00:00:17]}
{[%emt 00:00:11]} Kd3 {[%clk 00:02:53]} {[%emt 00:00:03]} 66. Nd5 {[%clk
00:00:23]} {[%emt 00:00:04]} f2+ {[%clk 00:02:57]} {[%emt 00:00:06]} 0-1

[Event "NK ABC Kwalificatie 2"]
[Site "Zoetermeer, Netherlands"]
[Date "2025.01.04"]
[Round "2.3"]
[White "Snijders, Take"]
[Black "Damen, Josephine"]
[Result "1-0"]
[TimeControl "55+10"]
[WhiteFideId "8935927"]
[BlackFideId "8647606"]
[WhiteElo "2119"]
[BlackElo "1891"]

1. e4 {[%clk 00:55:10]} {[%emt 00:00:09]} e5 {[%clk 00:55:15]} {[%emt
00:00:06]} 2. Nf3 {[%clk 00:55:17]} {[%emt 00:00:03]} Nc6 {[%clk 00:55:21]}
{[%emt 00:00:04]} 3. Bc4 {[%clk 00:55:23]} {[%emt 00:00:04]} Nf6 {[%clk
00:55:26]} {[%emt 00:00:04]} 4. d3 {[%clk 00:55:23]} {[%emt 00:00:10]} Bc5
{[%clk 00:55:29]} {[%emt 00:00:06]} 5. c3 {[%clk 00:55:27]} {[%emt 00:00:06]}
d6 {[%clk 00:55:32]} {[%emt 00:00:07]} 6. O-O {[%clk 00:55:31]} {[%emt
00:00:06]} a6 {[%clk 00:55:36]} {[%emt 00:00:07]} 7. a4 {[%clk 00:55:37]}
{[%emt 00:00:04]} Ba7 {[%clk 00:55:41]} {[%emt 00:00:04]} 8. Re1 {[%clk
00:55:28]} {[%emt 00:00:20]} O-O {[%clk 00:55:43]} {[%emt 00:00:08]} 9. h3
{[%clk 00:55:33]} {[%emt 00:00:04]} h6 {[%clk 00:55:46]} {[%emt 00:00:07]} 10.
Nbd2 {[%clk 00:55:35]} {[%emt 00:00:08]} Re8 {[%clk 00:55:32]} {[%emt
00:00:23]} 11. b4 {[%clk 00:53:55]} {[%emt 00:01:51]} Be6 {[%clk 00:54:13]}
{[%emt 00:01:29]} 12. Bxe6 {[%clk 00:53:07]} {[%emt 00:00:57]} Rxe6 {[%clk
00:54:18]} {[%emt 00:00:05]} 13. Nf1 {[%clk 00:52:05]} {[%emt 00:01:12]} Qd7
{[%clk 00:39:00]} {[%emt 00:15:28]} 14. Ra2 {[%clk 00:47:55]} {[%emt 00:04:20]}
Rae8 {[%clk 00:30:02]} {[%emt 00:09:07]} 15. b5 {[%clk 00:44:24]} {[%emt
00:03:41]} Ne7 {[%clk 00:29:58]} {[%emt 00:00:14]} 16. c4 {[%clk 00:43:03]}
{[%emt 00:01:31]} Ng6 {[%clk 00:27:41]} {[%emt 00:02:26]} 17. Ng3 {[%clk
00:36:12]} {[%emt 00:07:02]} Nf4 {[%clk 00:19:42]} {[%emt 00:08:10]} 18. d4
{[%clk 00:32:16]} {[%emt 00:04:06]} g6 {[%clk 00:13:41]} {[%emt 00:06:10]} 19.
Qb3 {[%clk 00:27:28]} {[%emt 00:04:58]} Kh7 {[%clk 00:05:01]} {[%emt 00:08:49]}
20. a5 {[%clk 00:24:13]} {[%emt 00:03:26]} axb5 {[%clk 00:03:30]} {[%emt
00:01:42]} 21. cxb5 {[%clk 00:24:16]} {[%emt 00:00:06]} N6h5 {[%clk 00:02:05]}
{[%emt 00:01:35]} 22. Nxh5 {[%clk 00:18:32]} {[%emt 00:05:54]} gxh5 {[%clk
00:01:33]} {[%emt 00:00:42]} 23. b6 {[%clk 00:16:05]} {[%emt 00:02:38]} Bb8
{[%clk 00:00:24]} {[%emt 00:01:19]} 24. dxe5 {[%clk 00:11:09]} {[%emt
00:05:05]} dxe5 {[%clk 00:00:14]} {[%emt 00:00:20]} 25. Nxe5 {[%clk 00:11:08]}
{[%emt 00:00:11]} Rxe5 {[%clk 00:00:20]} {[%emt 00:00:04]} 26. Bxf4 {[%clk
00:11:09]} {[%emt 00:00:08]} Rxe4 {[%clk 00:00:26]} {[%emt 00:00:03]} 27. Qc2
{[%clk 00:09:55]} {[%emt 00:01:25]} f5 {[%clk 00:00:23]} {[%emt 00:00:14]} 28.
Rxe4 {[%clk 00:09:47]} {[%emt 00:00:18]} Rxe4 {[%clk 00:00:31]} {[%emt
00:00:02]} 29. Bxc7 {[%clk 00:08:21]} {[%emt 00:01:36]} Re1+ {[%clk 00:00:16]}
{[%emt 00:00:25]} 30. Kh2 {[%clk 00:08:26]} {[%emt 00:00:04]} Bxc7+ {[%clk
00:00:16]} {[%emt 00:00:11]} 31. Qxc7 {[%clk 00:04:48]} {[%emt 00:03:49]} Qxc7+
{[%clk 00:00:24]} {[%emt 00:00:02]} 32. bxc7 {[%clk 00:04:53]} {[%emt
00:00:05]} Rc1 {[%clk 00:00:32]} {[%emt 00:00:01]} 33. Rb2 {[%clk 00:04:18]}
{[%emt 00:00:45]} Rxc7 {[%clk 00:00:37]} {[%emt 00:00:05]} 34. Kg3 {[%clk
00:04:06]} {[%emt 00:00:22]} Kg6 {[%clk 00:00:20]} {[%emt 00:00:28]} 35. Rb6+
{[%clk 00:04:09]} {[%emt 00:00:07]} Kg7 {[%clk 00:00:21]} {[%emt 00:00:08]} 36.
Kh4 {[%clk 00:03:41]} {[%emt 00:00:38]} f4 {[%clk 00:00:15]} {[%emt 00:00:17]}
37. Kxh5 {[%clk 00:03:40]} {[%emt 00:00:11]} Rc5+ {[%clk 00:00:24]} {[%emt
00:00:01]} 38. Kg4 {[%clk 00:03:37]} {[%emt 00:00:13]} Rxa5 {[%clk 00:00:14]}
{[%emt 00:00:20]} 39. Rxb7+ {[%clk 00:03:42]} {[%emt 00:00:05]} Kg6 {[%clk
00:00:22]} 40. Rb6+ {[%clk 00:03:47]} {[%emt 00:00:05]} Kg7 {[%clk 00:00:29]}
{[%emt 00:00:03]} 41. Kxf4 {[%clk 00:03:53]} {[%emt 00:00:04]} Ra2 {[%clk
00:00:23]} {[%emt 00:00:16]} 42. Kg3 {[%clk 00:03:51]} {[%emt 00:00:12]} Ra5
{[%clk 00:00:12]} {[%emt 00:00:21]} 43. f4 {[%clk 00:03:26]} {[%emt 00:00:35]}
Ra3+ {[%clk 00:00:18]} {[%emt 00:00:05]} 44. Kg4 {[%clk 00:03:23]} {[%emt
00:00:13]} Ra2 {[%clk 00:00:24]} {[%emt 00:00:04]} 45. g3 {[%clk 00:03:20]}
{[%emt 00:00:13]} Ra3 {[%clk 00:00:29]} {[%emt 00:00:05]} 46. Kh4 {[%clk
00:03:19]} {[%emt 00:00:11]} Rf3 {[%clk 00:00:31]} {[%emt 00:00:08]} 47. Ra6
{[%clk 00:03:20]} {[%emt 00:00:09]} Kh7 {[%clk 00:00:28]} {[%emt 00:00:13]} 48.
Kg4 {[%clk 00:02:46]} {[%emt 00:00:44]} Rb3 {[%clk 00:00:33]} {[%emt 00:00:05]}
49. Ra5 {[%clk 00:02:43]} {[%emt 00:00:12]} Kg6 {[%clk 00:00:29]} {[%emt
00:00:13]} 50. h4 {[%clk 00:02:41]} {[%emt 00:00:13]} Re3 {[%clk 00:00:19]}
{[%emt 00:00:21]} 51. Ra6+ {[%clk 00:02:36]} {[%emt 00:00:15]} Kg7 {[%clk
00:00:26]} {[%emt 00:00:02]} 52. h5 {[%clk 00:02:06]} {[%emt 00:00:40]} Rb3
{[%clk 00:00:22]} {[%emt 00:00:13]} 53. Rg6+ {[%clk 00:02:14]} {[%emt
00:00:03]} Kh7 {[%clk 00:00:29]} {[%emt 00:00:04]} 54. Kf5 {[%clk 00:01:25]}
{[%emt 00:00:59]} Rb5+ {[%clk 00:00:31]} {[%emt 00:00:08]} 55. Kg4 {[%clk
00:01:34]} Rb3 {[%clk 00:00:40]} {[%emt 00:00:02]} 56. Rc6 {[%clk 00:01:27]}
{[%emt 00:00:17]} Ra3 {[%clk 00:00:29]} {[%emt 00:00:22]} 57. Rc7+ {[%clk
00:01:09]} {[%emt 00:00:27]} Kg8 {[%clk 00:00:35]} {[%emt 00:00:02]} 58. Kh4
{[%clk 00:01:05]} {[%emt 00:00:15]} Rf3 {[%clk 00:00:27]} {[%emt 00:00:19]} 59.
Kh3 {[%clk 00:01:01]} {[%emt 00:00:14]} Rf1 {[%clk 00:00:14]} {[%emt 00:00:23]}
60. Kg2 {[%clk 00:01:04]} {[%emt 00:00:07]} Ra1 {[%clk 00:00:22]} {[%emt
00:00:02]} 61. Re7 {[%clk 00:01:13]} {[%emt 00:00:02]} Ra3 {[%clk 00:00:14]}
{[%emt 00:00:17]} 62. Kf2 {[%clk 00:01:22]} {[%emt 00:00:02]} Rd3 {[%clk
00:00:17]} {[%emt 00:00:06]} 63. Re3 {[%clk 00:01:29]} {[%emt 00:00:03]} Rd5
{[%clk 00:00:15]} {[%emt 00:00:13]} 64. g4 {[%clk 00:01:37]} {[%emt 00:00:02]}
Rd2+ {[%clk 00:00:14]} {[%emt 00:00:11]} 65. Kf3 {[%clk 00:01:43]} {[%emt
00:00:03]} Rd1 {[%clk 00:00:22]} {[%emt 00:00:01]} 66. Ke4 {[%clk 00:01:47]}
{[%emt 00:00:06]} Rd8 {[%clk 00:00:20]} {[%emt 00:00:11]} 67. Kf5 {[%clk
00:01:50]} {[%emt 00:00:08]} Kh7 {[%clk 00:00:17]} {[%emt 00:00:13]} 68. Re7+
{[%clk 00:01:58]} {[%emt 00:00:02]} Kh8 {[%clk 00:00:22]} {[%emt 00:00:05]} 69.
Re6 {[%clk 00:01:30]} {[%emt 00:00:38]} Kh7 {[%clk 00:00:25]} {[%emt 00:00:07]}
70. Re7+ {[%clk 00:01:39]} {[%emt 00:00:01]} Kh8 {[%clk 00:00:33]} {[%emt
00:00:01]} 71. Rf7 {[%clk 00:01:48]} {[%emt 00:00:02]} Kg8 {[%clk 00:00:20]}
{[%emt 00:00:23]} 72. Kg6 {[%clk 00:01:54]} {[%emt 00:00:03]} Ra8 {[%clk
00:00:14]} {[%emt 00:00:17]} 73. Rf6 {[%clk 00:01:58]} {[%emt 00:00:05]} Ra3
{[%clk 00:00:13]} {[%emt 00:00:11]} 74. Rb6 {[%clk 00:01:59]} {[%emt 00:00:09]}
Ra8 {[%clk 00:00:21]} {[%emt 00:00:02]} 75. Kxh6 {[%clk 00:02:02]} {[%emt
00:00:07]} Rf8 {[%clk 00:00:29]} {[%emt 00:00:02]} 76. Kg6 {[%clk 00:02:02]}
{[%emt 00:00:09]} 1-0

[Event "NK ABC Kwalificatie 2"]
[Site "Zoetermeer, Netherlands"]
[Date "2025.01.04"]
[Round "2.4"]
[White "Madularea, David"]
[Black "De Wit, Evan"]
[Result "1-0"]
[TimeControl "55+10"]
[WhiteFideId "8700494"]
[BlackFideId "8935949"]
[WhiteElo "2232"]
[BlackElo "1955"]

1. d4 {[%clk 00:55:12]} {[%emt 00:00:07]} Nf6 {[%clk 00:55:19]} {[%emt
00:00:02]} 2. c4 {[%clk 00:55:15]} {[%emt 00:00:07]} g6 {[%clk 00:55:19]}
{[%emt 00:00:08]} 3. Nc3 {[%clk 00:55:22]} {[%emt 00:00:05]} d5 {[%clk
00:55:23]} {[%emt 00:00:06]} 4. Nf3 {[%clk 00:55:27]} {[%emt 00:00:04]} Bg7
{[%clk 00:55:24]} {[%emt 00:00:09]} 5. h3 {[%clk 00:55:34]} {[%emt 00:00:03]}
O-O {[%clk 00:55:16]} {[%emt 00:00:19]} 6. cxd5 {[%clk 00:55:40]} {[%emt
00:00:03]} Nxd5 {[%clk 00:55:08]} {[%emt 00:00:18]} 7. e4 {[%clk 00:55:46]}
{[%emt 00:00:04]} Nxc3 {[%clk 00:55:09]} {[%emt 00:00:10]} 8. bxc3 {[%clk
00:55:52]} {[%emt 00:00:04]} c5 {[%clk 00:54:59]} {[%emt 00:00:20]} 9. Be2
{[%clk 00:55:58]} {[%emt 00:00:04]} Nc6 {[%clk 00:55:04]} {[%emt 00:00:06]} 10.
Be3 {[%clk 00:56:05]} {[%emt 00:00:03]} Qa5 {[%clk 00:54:57]} {[%emt 00:00:17]}
11. O-O {[%clk 00:55:09]} {[%emt 00:01:06]} Qxc3 {[%clk 00:53:47]} {[%emt
00:01:19]} 12. Rc1 {[%clk 00:54:54]} {[%emt 00:00:24]} Qa3 {[%clk 00:50:43]}
{[%emt 00:03:15]} 13. Rxc5 {[%clk 00:50:52]} {[%emt 00:04:12]} Qxa2 {[%clk
00:50:08]} {[%emt 00:00:45]} 14. d5 {[%clk 00:34:58]} {[%emt 00:16:03]} Rd8
{[%clk 00:42:37]} {[%emt 00:07:42]} 15. Bc4 {[%clk 00:32:49]} {[%emt 00:02:19]}
Qb2 {[%clk 00:41:22]} {[%emt 00:01:25]} 16. dxc6 {[%clk 00:32:40]} {[%emt
00:00:19]} Rxd1 {[%clk 00:39:35]} {[%emt 00:01:57]} 17. Rxd1 {[%clk 00:32:44]}
{[%emt 00:00:05]} Bf8 {[%clk 00:24:08]} {[%emt 00:15:38]} 18. Rcd5 {[%clk
00:17:25]} {[%emt 00:15:29]} bxc6 {[%clk 00:21:26]} {[%emt 00:02:53]} 19. Rd8
{[%clk 00:17:23]} {[%emt 00:00:10]} Qg7 {[%clk 00:19:14]} {[%emt 00:02:23]} 20.
Ne5 {[%clk 00:15:16]} {[%emt 00:02:16]} e6 {[%clk 00:12:34]} {[%emt 00:06:51]}
21. Nd7 {[%clk 00:13:20]} {[%emt 00:02:06]} Bb7 {[%clk 00:08:27]} {[%emt
00:04:18]} 22. Nxf8 {[%clk 00:13:20]} {[%emt 00:00:08]} Rxd8 {[%clk 00:08:13]}
{[%emt 00:00:26]} 23. Rxd8 {[%clk 00:13:23]} {[%emt 00:00:07]} Qxf8 {[%clk
00:08:17]} {[%emt 00:00:06]} 24. Rxf8+ {[%clk 00:13:27]} {[%emt 00:00:05]} Kxf8
{[%clk 00:08:22]} {[%emt 00:00:05]} 25. Bxa7 {[%clk 00:13:28]} {[%emt
00:00:09]} Ke7 {[%clk 00:08:16]} {[%emt 00:00:17]} 26. Bc5+ {[%clk 00:13:04]}
{[%emt 00:00:33]} Kf6 {[%clk 00:08:17]} {[%emt 00:00:09]} 27. Bd4+ {[%clk
00:11:48]} {[%emt 00:01:25]} e5 {[%clk 00:08:26]} {[%emt 00:00:02]} 28. Bc3
{[%clk 00:11:43]} {[%emt 00:00:14]} c5 {[%clk 00:08:04]} {[%emt 00:00:34]} 29.
Bd5 {[%clk 00:11:41]} {[%emt 00:00:11]} 1-0

[Event "NK ABC Kwalificatie 2"]
[Site "Zoetermeer, Netherlands"]
[Date "2025.01.04"]
[Round "2.5"]
[White "Hylarides, Charlie Ronald"]
[Black "Van Batenburg, Mees"]
[Result "0-1"]
[TimeControl "55+10"]
[WhiteFideId "9041758"]
[BlackFideId "8762545"]
[WhiteElo "1971"]
[BlackElo "2221"]

1. d4 {[%clk 00:55:11]} {[%emt 00:00:08]} e6 {[%clk 00:55:02]} {[%emt
00:00:18]} 2. c4 {[%clk 00:54:59]} {[%emt 00:00:23]} f5 {[%clk 00:55:05]}
{[%emt 00:00:06]} 3. Nf3 {[%clk 00:55:02]} {[%emt 00:00:08]} Nf6 {[%clk
00:55:10]} {[%emt 00:00:04]} 4. Nc3 {[%clk 00:55:02]} {[%emt 00:00:11]} Bb4
{[%clk 00:55:04]} {[%emt 00:00:15]} 5. g3 {[%clk 00:52:45]} {[%emt 00:02:27]}
O-O {[%clk 00:53:21]} {[%emt 00:01:53]} 6. Bg2 {[%clk 00:52:40]} {[%emt
00:00:16]} Bxc3+ {[%clk 00:53:10]} {[%emt 00:00:20]} 7. bxc3 {[%clk 00:52:45]}
{[%emt 00:00:06]} d6 {[%clk 00:53:17]} {[%emt 00:00:03]} 8. O-O {[%clk
00:52:41]} {[%emt 00:00:13]} Qe7 {[%clk 00:52:30]} {[%emt 00:00:57]} 9. Bg5
{[%clk 00:51:06]} {[%emt 00:01:45]} Nbd7 {[%clk 00:48:02]} {[%emt 00:04:38]} 10.
a4 {[%clk 00:42:11]} {[%emt 00:09:04]} h6 {[%clk 00:43:57]} {[%emt 00:04:16]}
11. Bc1 {[%clk 00:40:16]} {[%emt 00:02:05]} Ne4 {[%clk 00:43:22]} {[%emt
00:00:45]} 12. Qd3 {[%clk 00:38:07]} {[%emt 00:02:18]} c5 {[%clk 00:38:42]}
{[%emt 00:04:48]} 13. Nd2 {[%clk 00:35:24]} {[%emt 00:02:55]} Nxd2 {[%clk
00:37:22]} {[%emt 00:01:29]} 14. Qxd2 {[%clk 00:32:17]} {[%emt 00:03:17]} Rb8
{[%clk 00:32:11]} {[%emt 00:05:21]} 15. Rd1 {[%clk 00:30:02]} {[%emt 00:02:26]}
Rd8 {[%clk 00:28:45]} {[%emt 00:03:32]} 16. a5 {[%clk 00:26:57]} {[%emt
00:03:19]} e5 {[%clk 00:25:55]} {[%emt 00:03:00]} 17. Ba3 {[%clk 00:25:29]}
{[%emt 00:01:38]} b6 {[%clk 00:24:06]} {[%emt 00:02:00]} 18. Rab1 {[%clk
00:23:01]} {[%emt 00:02:37]} Ba6 {[%clk 00:19:13]} {[%emt 00:05:04]} 19. Qa2
{[%clk 00:15:14]} {[%emt 00:07:56]} Bb7 {[%clk 00:12:22]} {[%emt 00:07:02]} 20.
Bxb7 {[%clk 00:14:28]} {[%emt 00:00:56]} Rxb7 {[%clk 00:12:31]} {[%emt
00:00:01]} 21. dxc5 {[%clk 00:13:02]} {[%emt 00:01:36]} Nxc5 {[%clk 00:11:02]}
{[%emt 00:01:39]} 22. Qd2 {[%clk 00:11:10]} {[%emt 00:02:02]} Ne4 {[%clk
00:07:59]} {[%emt 00:03:13]} 23. Qd3 {[%clk 00:10:01]} {[%emt 00:01:19]} Qe6
{[%clk 00:03:31]} {[%emt 00:04:39]} 24. f3 {[%clk 00:09:38]} {[%emt 00:00:32]}
Nf6 {[%clk 00:03:39]} {[%emt 00:00:02]} 25. c5 {[%clk 00:04:19]} {[%emt
00:05:29]} d5 {[%clk 00:03:40]} {[%emt 00:00:09]} 26. Qb5 {[%clk 00:04:07]}
{[%emt 00:00:22]} f4 {[%clk 00:01:57]} {[%emt 00:01:53]} 27. c6 {[%clk
00:03:25]} {[%emt 00:00:52]} Rf7 {[%clk 00:00:46]} {[%emt 00:01:21]} 28. axb6
{[%clk 00:03:14]} {[%emt 00:00:22]} fxg3 {[%clk 00:00:54]} 29. c7 {[%clk
00:02:32]} {[%emt 00:00:52]} Rdf8 {[%clk 00:01:03]} 30. b7 {[%clk 00:02:28]}
{[%emt 00:00:14]} Qh3 {[%clk 00:01:11]} {[%emt 00:00:02]} 31. Bc5 {[%clk
00:00:20]} {[%emt 00:02:19]} Qxh2+ {[%clk 00:00:46]} {[%emt 00:00:34]} 32. Kf1
{[%clk 00:00:28]} Ne4 {[%clk 00:00:30]} {[%emt 00:00:27]} 33. e3 {[%clk
00:00:12]} {[%emt 00:00:26]} Qf2# {[%clk 00:00:38]} {[%emt 00:00:02]} 0-1